[Event "36th Zalakaros Festival 2017"]
[Site "Zalakaros"]
[Date "2017.05.19"]
[Round "2"]
[White "Hardicsay, Peter"]
[Black "Gara, Ticia"]
[Result "1-0"]
[ECO "A39"]
[WhiteElo "2218"]
[BlackElo "2329"]
[Annotator "ChessBase"]
[PlyCount "87"]
[EventDate "2017.??.??"]
[EventType "swiss"]
[EventCountry "HUN"]
[SourceTitle "playchess.com"]
[Source "ChessBase"]
[SourceQuality "1"]
[TimeControl "40/5400+30:1800+30"]

1. Nf3 {[%emt 0:00:03]} Nf6 {[%emt 0:01:54]} 2. c4 {[%emt 0:00:28]} c5 {[%emt 0:01:28]} 3. Nc3 {[%emt 0:00:57]} Nc6 {[%emt 0:01:05]} 4. g3 {[%emt 0:01:46]} g6 {[%emt 0:02:42]} 5. Bg2 {[%emt 0:01:01]} Bg7 {[%emt 0:00:04]} 6. O-O {[%emt 0:03:54]} O-O {[%emt 0:00:55]} 7. d4 {[%emt 0:00:59]} cxd4 {[%emt 0:00:57]} 8. Nxd4 {[%emt 0:00:09]} Ng4 {[%emt 0:06:16]} 9. e3 {[%emt 0:04:46]} Nge5 {[%emt 0:03:09]} 10. b3 {[%emt 0:08:37]} d6 {[%emt 0:04:26]} 11. h3 {[%emt 0:06:59]} a6 {[%emt 0:15:51]} 12. a3 {[%emt 0:11:31]} Rb8 {[%emt 0:06:16]} 13. Bb2 {[%emt 0:04:18]} Bd7 {[%emt 0:04:57]} 14. Rc1 {[%emt 0:06:07]} h5 {[%emt 0:08:48]} 15. Rc2 {[%emt 0:08:51]} Nxd4 {[%emt 0:09:02]} 16. exd4 {[%emt 0:00:07]} Nc6 {[%emt 0:00:09]} 17. Rd2 {[%emt 0:04:37]} b5 {[%emt 0:04:18]} 18. cxb5 {[%emt 0:01:12]} axb5 {[%emt 0:01:12]} 19. b4 {[%emt 0:00:29]} Qb6 {[%emt 0:06:15]} 20. Nd5 {[%emt 0:05:15]} Qa7 {[%emt 0:03:27]} 21. Ne3 {[%emt 0:02:35]} Nd8 {[%emt 0:02:41]} 22. Kh2 {[%emt 0:05:00]} e6 {[%emt 0:00:47]} 23. d5 {[%emt 0:09:32]} Bxb2 {[%emt 0:01:40]} 24. Rxb2 {[%emt 0:00:09]} Qxa3 {[%emt 0:00:40]} 25. Rb3 {[%emt 0:06:03]} Qa2 {[%emt 0:01:43]} 26. dxe6 {[%emt 0:01:54]} Bxe6 {[%emt 0:04:13]} 27. Nd5 {[%emt 0:00:36]} Qa7 {[%emt 0:03:36]} 28. Nf6+ {[%emt 0:02:07]} Kg7 {[%emt 0:00:30]} 29. Rf3 {[%emt 0:00:11]} d5 {[%emt 0:02:53]} 30. Qd2 {[%emt 0:01:11]} Rh8 {[%emt 0:01:37]} 31. Nxd5 {[%emt 0:00:40]} Bxd5 {[%emt 0:00:17]} 32. Qxd5 {[%emt 0:00:02]} Re8 {[%emt 0:01:09]} 33. Rd1 {[%emt 0:00:49]} Qe7 {[%emt 0:01:02]} 34. Qd4+ {[%emt 0:01:42]} Kg8 {[%emt 0:00:06]} 35. Qd6 {[%emt 0:00:30]} Ne6 {[%emt 0:00:26]} 36. Qxe7 {[%emt 0:00:21]} Rxe7 {[%emt 0:00:00]} 37. Re3 {[%emt 0:00:28]} Rc8 {[%emt 0:01:10]} 38. Re5 {[%emt 0:00:32]} Rc2 {[%emt 0:00:54]} 39. Kg1 {[%emt 0:00:10]} Ra7 {[%emt 0:00:41]} 40. Bd5 {[%emt 0:00:00]} Nc7 {[%emt 0:00:39]} 41. Re7 {[%emt 0:02:23]} Kg7 {[%emt 0:23:22]} 42. Rxf7+ {[%emt 0:04:42]} Kh6 {[%emt 0:00:07]} 43. h4 {[%emt 0:02:41]} Ra6 {[%emt 0:07:02]} 44. Be4 {[%emt 0:01:36]} 1-0

[Event "36th Zalakaros Festival 2017"]
[Site "Zalakaros"]
[Date "2017.05.20"]
[Round "3"]
[White "Tompa, Janos"]
[Black "Terbe, Julianna"]
[Result "1/2-1/2"]
[ECO "B30"]
[WhiteElo "2392"]
[BlackElo "2258"]
[Annotator "NA"]
[PlyCount "113"]
[EventDate "2017.??.??"]
[EventType "swiss"]
[EventCountry "HUN"]
[SourceTitle "playchess.com"]
[Source "ChessBase"]
[SourceQuality "1"]
[TimeControl "40/5400+30:1800+30"]

1. e4 {[%emt 0:00:21]} c5 {[%emt 0:00:38]} 2. Nf3 {[%emt 0:00:24]} Nc6 {[%emt 0:00:07]} 3. Nc3 {[%emt 0:00:26]} e5 {[%emt 0:00:34]} 4. Bc4 {[%emt 0:00:21]} d6 {[%emt 0:00:11]} 5. d3 {[%emt 0:00:38]} Be7 6. h3 {[%emt 0:01:59]} Nf6 {[%emt 0:00:40]} 7. O-O {[%emt 0:01:06]} O-O {[%emt 0:00:14]} 8. a3 {[%emt 0:03:44]} a6 {[%emt 0:03:44]} 9. Ba2 {[%emt 0:04:31]} Be6 {[%emt 0:04:46]} 10. Nd5 {[%emt 0:00:32]} b5 {[%emt 0:02:25]} 11. c3 {[%emt 0:03:23]} Rc8 {[%emt 0:05:11]} 12. Re1 {[%emt 0:05:46]} Bxd5 {[%emt 0:11:17]} 13. exd5 {[%emt 0:05:47]} Nb8 {[%emt 0:01:03]} 14. a4 {[%emt 0:02:35]} Nbd7 {[%emt 0:01:27]} 15. axb5 {[%emt 0:14:59]} axb5 {[%emt 0:00:02]} 16. c4 {[%emt 0:00:07]} Nb6 {[%emt 0:03:18]} 17. Bb3 {[%emt 0:04:12]} Ra8 {[%emt 0:06:26]} 18. Rxa8 {[%emt 0:04:03]} Qxa8 {[%emt 0:00:30]} 19. Nh2 {[%emt 0:09:46]} Re8 {[%emt 0:07:57]} 20. Ng4 {[%emt 0:07:17]} Nfd7 {[%emt 0:10:18]} 21. Bd2 {[%emt 0:01:51]} f5 {[%emt 0:02:04]} 22. Ne3 {[%emt 0:00:05]} g6 {[%emt 0:00:42]} 23. cxb5 f4 {[%emt 0:02:09]} 24. Nc4 {[%emt 0:01:55]} Kg7 {[%emt 0:10:40]} 25. Nxb6 {[%emt 0:02:58]} Nxb6 {[%emt 0:00:02]} 26. Qa1 {[%emt 0:00:08]} Qb8 {[%emt 0:03:26]} 27. Qa6 {[%emt 0:05:12]} Bd8 {[%emt 0:00:15]} 28. Ba5 {[%emt 0:03:07]} Re7 {[%emt 0:01:17]} 29. Bxb6 {[%emt 0:00:10]} Bxb6 {[%emt 0:00:01]} 30. Qa4 {[%emt 0:00:16]} Ra7 {[%emt 0:00:19]} 31. Qc4 {[%emt 0:01:35]} Qa8 {[%emt 0:04:06]} 32. Kh2 {[%emt 0:06:37]} Ra1 {[%emt 0:02:21]} 33. Rd1 {[%emt 0:01:17]} Qa5 {[%emt 0:02:27]} 34. Qc3 {[%emt 0:01:03]} Rxd1 {[%emt 0:02:39]} 35. Qxa5 {[%emt 0:00:35]} Bxa5 {[%emt 0:00:10]} 36. Bxd1 {[%emt 0:00:06]} Kf6 {[%emt 0:00:18]} 37. g3 {[%emt 0:01:18]} fxg3+ {[%emt 0:00:36]} 38. fxg3 {[%emt 0:00:05]} h6 {[%emt 0:02:35]} 39. Kg2 {[%emt 0:00:41]} Bb6 {[%emt 0:00:24]} 40. Bg4 {[%emt 0:00:00]} Ke7 {[%emt 0:00:43]} 41. Kf3 {[%emt 0:00:27]} Kf6 {[%emt 0:00:10]} 42. Bc8 {[%emt 0:01:46]} Ke7 {[%emt 0:00:27]} 43. Ke4 {[%emt 0:01:20]} Kf6 {[%emt 0:00:10]} 44. Bb7 {[%emt 0:00:12]} Ke7 {[%emt 0:00:48]} 45. Bc6 {[%emt 0:00:12]} Kf6 {[%emt 0:00:07]} 46. Be8 {[%emt 0:00:19]} Kg7 {[%emt 0:01:14]} 47. b3 {[%emt 0:04:37]} Kf6 {[%emt 0:00:09]} 48. h4 {[%emt 0:00:35]} Ba7 {[%emt 0:00:50]} 49. Kf3 {[%emt 0:02:27]} Bb6 {[%emt 0:00:18]} 50. Ke2 {[%emt 0:00:51]} Kg7 {[%emt 0:00:18]} 51. Kd2 {[%emt 0:00:21]} Kf6 {[%emt 0:00:14]} 52. Kc3 {[%emt 0:00:36]} Kg7 {[%emt 0:00:31]} 53. Kc2 {[%emt 0:06:17]} Kf6 {[%emt 0:00:11]} 54. Kd1 {[%emt 0:00:24]} Kg7 {[%emt 0:00:11]} 55. Ke2 {[%emt 0:00:04]} Kf6 {[%emt 0:00:05]} 56. Kf3 {[%emt 0:00:07]} Ba7 {[%emt 0:01:51]} 57. Ke4 1/2-1/2

[Event "36th Zalakaros Festival 2017"]
[Site "Zalakaros"]
[Date "2017.05.20"]
[Round "3"]
[White "Paschall, William M"]
[Black "Sadhwani, Raunak"]
[Result "1/2-1/2"]
[ECO "A00"]
[WhiteElo "2380"]
[BlackElo "2298"]
[Annotator "NA"]
[PlyCount "41"]
[EventDate "2017.??.??"]
[EventType "swiss"]
[EventCountry "HUN"]
[SourceTitle "playchess.com"]
[Source "ChessBase"]
[SourceQuality "1"]
[TimeControl "40/5400+30:1800+30"]

1. g3 {[%emt 0:00:10]} g6 {[%emt 0:00:53]} 2. Bg2 {[%emt 0:01:10]} Bg7 {[%emt 0:00:06]} 3. d4 {[%emt 0:03:08]} c5 {[%emt 0:07:30]} 4. c3 {[%emt 0:01:34]} Qb6 {[%emt 0:03:59]} 5. Nf3 {[%emt 0:02:34]} Nf6 {[%emt 0:10:02]} 6. O-O {[%emt 0:03:35]} O-O {[%emt 0:00:34]} 7. dxc5 {[%emt 0:09:00]} Qxc5 {[%emt 0:00:10]} 8. Bg5 {[%emt 0:02:23]} d6 {[%emt 0:01:40]} 9. Nbd2 {[%emt 0:03:15]} Qc7 {[%emt 0:01:20]} 10. Bxf6 {[%emt 0:06:20]} Bxf6 {[%emt 0:00:07]} 11. Re1 {[%emt 0:01:09]} b6 {[%emt 0:04:51]} 12. Nd4 {[%emt 0:05:01]} Bb7 {[%emt 0:00:13]} 13. Bxb7 {[%emt 0:08:21]} Qxb7 {[%emt 0:01:04]} 14. e4 {[%emt 0:02:12]} Nc6 {[%emt 0:00:11]} 15. Nxc6 {[%emt 0:01:44]} Qxc6 {[%emt 0:00:05]} 16. a4 {[%emt 0:05:24]} Rfb8 {[%emt 0:04:38]} 17. Ra2 {[%emt 0:05:18]} a6 {[%emt 0:11:17]} 18. Qb3 {[%emt 0:04:30]} Rb7 {[%emt 0:02:12]} 19. Qc4 {[%emt 0:06:47]} Rc7 {[%emt 0:03:28]} 20. Qd3 {[%emt 0:04:30]} Qb7 {[%emt 0:00:40]} 21. Nc4 {[%emt 0:01:24]} 1/2-1/2

[Event "36th Zalakaros Festival 2017"]
[Site "Zalakaros"]
[Date "2017.05.20"]
[Round "3"]
[White "Arman, Deniz"]
[Black "Rakesh Kumar Jena"]
[Result "1-0"]
[ECO "B21"]
[WhiteElo "2377"]
[BlackElo "2288"]
[Annotator "NA RC"]
[PlyCount "143"]
[EventDate "2017.??.??"]
[EventType "swiss"]
[EventCountry "HUN"]
[SourceTitle "playchess.com"]
[Source "ChessBase"]
[SourceQuality "1"]
[TimeControl "40/5400+30:1800+30"]

1. e4 {[%emt 0:01:25]} c5 {[%emt 0:04:22]} 2. d4 {[%emt 0:00:16]} cxd4 {[%emt 0:00:06]} 3. c3 {[%emt 0:00:06]} d5 {[%emt 0:03:58]} 4. exd5 {[%emt 0:00:06]} Qxd5 {[%emt 0:00:05]} 5. cxd4 {[%emt 0:00:18]} e5 {[%emt 0:00:10]} 6. Nf3 {[%emt 0:00:31]} Nc6 {[%emt 0:00:13]} 7. Nc3 {[%emt 0:00:10]} Bb4 {[%emt 0:00:06]} 8. Bd2 {[%emt 0:00:09]} Bxc3 {[%emt 0:00:06]} 9. Bxc3 {[%emt 0:00:05]} e4 {[%emt 0:00:07]} 10. Ne5 {[%emt 0:00:19]} Nxe5 {[%emt 0:00:08]} 11. dxe5 {[%emt 0:00:05]} Ne7 {[%emt 0:00:04]} 12. Qe2 {[%emt 0:00:24]} O-O {[%emt 0:00:09]} 13. Rd1 {[%emt 0:00:19]} Qxa2 {[%emt 0:00:06]} 14. Bb4 {[%emt 0:01:35]} Qe6 {[%emt 0:00:06]} 15. Qxe4 {[%emt 0:00:25]} Re8 {[%emt 0:00:30]} 16. Bb5 {[%emt 0:01:38]} Nc6 {[%emt 0:00:41]} 17. O-O {[%emt 0:01:08]} Qg6 {[%emt 0:01:58]} 18. Qe3 {[%emt 0:10:57]} Bf5 {[%emt 0:16:30]} 19. Rd6 {[%emt 0:24:29]} Rxe5 {[%emt 0:15:18]} 20. Rxg6 {[%emt 0:03:47]} hxg6 {[%emt 0:00:06]} 21. Qg3 {[%emt 0:03:38]} Rxb5 {[%emt 0:00:08]} 22. Bc3 {[%emt 0:00:03]} Rd5 {[%emt 0:01:46]} 23. Qc7 {[%emt 0:08:11]} Rd7 {[%emt 0:00:47]} 24. Qf4 {[%emt 0:00:04]} Re8 {[%emt 0:03:45]} 25. f3 {[%emt 0:04:48]} b5 {[%emt 0:09:21]} 26. g4 {[%emt 0:14:52]} Bd3 {[%emt 0:06:22]} 27. Re1 {[%emt 0:06:35]} Rxe1+ {[%emt 0:00:14]} 28. Bxe1 {[%emt 0:00:02]} Bc4 {[%emt 0:02:53]} 29. Bc3 {[%emt 0:02:14]} Be6 {[%emt 0:02:04]} 30. Qe4 {[%emt 0:03:39]} b4 {[%emt 0:02:55]} 31. Qxc6 {[%emt 0:11:08]} bxc3 {[%emt 0:00:08]} 32. Qxc3 {[%emt 0:00:33]} Rb7 {[%emt 0:00:25]} 33. b4 {[%emt 0:00:08]} Rb5 {[%emt 0:02:39]} 34. Qd4 {[%emt 0:00:54]} Kh7 {[%emt 0:01:44]} 35. Qc3 {[%emt 0:00:30]} a6 {[%emt 0:00:27]} 36. Kf2 {[%emt 0:00:17]} Kg8 {[%emt 0:00:16]} 37. h4 {[%emt 0:00:41]} Kh7 {[%emt 0:00:58]} 38. Kg3 {[%emt 0:00:18]} Kg8 {[%emt 0:01:15]} 39. Qa3 {[%emt 0:00:07]} Kh7 {[%emt 0:01:06]} 40. Qc3 {[%emt 0:00:00]} Kg8 {[%emt 0:00:53]} 41. Qe1 {[%emt 0:04:06]} Kh7 {[%emt 0:01:57]} 42. f4 {[%emt 0:08:13]} Kg8 {[%emt 0:00:58]} 43. Qe4 {[%emt 0:00:09]} Rd5 {[%emt 0:03:40]} 44. h5 {[%emt 0:01:27]} gxh5 {[%emt 0:15:10]} 45. f5 {[%emt 0:00:09]} Rd6 {[%emt 0:00:11]} 46. fxe6 {[%emt 0:05:17]} Rxe6 {[%emt 0:00:08]} 47. Qa8+ {[%emt 0:00:17]} Kh7 {[%emt 0:00:05]} 48. gxh5 {[%emt 0:06:29]} Rf6 {[%emt 0:00:52]} 49. Qb7 {[%emt 0:01:42]} Kg8 {[%emt 0:02:16]} 50. Kg4 {[%emt 0:01:20]} Re6 {[%emt 0:00:37]} 51. Kf4 {[%emt 0:04:46]} Rf6+ {[%emt 0:06:19]} 52. Kg5 {[%emt 0:00:05]} Re6 {[%emt 0:00:05]} 53. Qc7 {[%emt 0:00:10]} Re8 {[%emt 0:01:14]} 54. Qb7 {[%emt 0:01:25]} Re5+ {[%emt 0:01:25]} 55. Kg4 {[%emt 0:00:11]} Re6 {[%emt 0:00:04]} 56. Kf3 {[%emt 0:00:39]} Rf6+ {[%emt 0:00:13]} 57. Ke4 {[%emt 0:00:06]} Kh7 {[%emt 0:00:52]} 58. Kd3 {[%emt 0:00:33]} Rd6+ {[%emt 0:05:03]} 59. Kc3 {[%emt 0:00:24]} f5 {[%emt 0:00:43]} 60. Qf3 {[%emt 0:01:10]} Rf6 {[%emt 0:00:26]} 61. Qf4 {[%emt 0:00:02]} Kg8 {[%emt 0:01:51]} 62. Kd3 {[%emt 0:00:03]} Kh7 {[%emt 0:17:08]} 63. Ke3 {[%emt 0:00:04]} Kg8 {[%emt 0:00:08]} 64. Kf3 {[%emt 0:00:04]} Kh7 {[%emt 0:00:15]} 65. Kg3 {[%emt 0:00:45]} Kg8 {[%emt 0:01:44]} 66. Kh4 {[%emt 0:00:33]} Kh7 {[%emt 0:00:06]} 67. Kg5 {[%emt 0:00:09]} Kh8 {[%emt 0:03:15]} 68. Qb8+ {[%emt 0:00:17]} Kh7 {[%emt 0:00:05]} 69. Kf4 {[%emt 0:00:07]} Rh6 {[%emt 0:00:51]} 70. Qe8 {[%emt 0:00:27]} Rb6 {[%emt 0:00:11]} 71. Qf8 {[%emt 0:01:20]} Rb5 {[%emt 0:00:34]} 72. Qd6 {[%emt 0:00:11]} 1-0

[Event "36th Zalakaros Festival 2017"]
[Site "Zalakaros"]
[Date "2017.05.20"]
[Round "3"]
[White "Papp, Petra"]
[Black "Sankalp Gupta"]
[Result "1/2-1/2"]
[ECO "A05"]
[WhiteElo "2371"]
[BlackElo "2269"]
[Annotator "NA RC"]
[PlyCount "108"]
[EventDate "2017.??.??"]
[EventType "swiss"]
[EventCountry "HUN"]
[SourceTitle "playchess.com"]
[Source "ChessBase"]
[SourceQuality "1"]
[TimeControl "40/5400+30:1800+30"]

1. Nf3 {[%emt 0:00:07]} Nf6 {[%emt 0:07:21]} 2. c4 {[%emt 0:00:40]} g6 {[%emt 0:00:51]} 3. Nc3 {[%emt 0:01:34]} c5 {[%emt 0:00:25]} 4. d4 {[%emt 0:04:00]} cxd4 {[%emt 0:00:03]} 5. Nxd4 {[%emt 0:00:36]} Bg7 {[%emt 0:00:10]} 6. e4 {[%emt 0:02:10]} d6 {[%emt 0:00:02]} 7. Be2 {[%emt 0:01:29]} O-O {[%emt 0:00:09]} 8. O-O {[%emt 0:01:13]} b6 {[%emt 0:00:02]} 9. Be3 {[%emt 0:01:20]} Bb7 {[%emt 0:00:04]} 10. f3 {[%emt 0:01:35]} Nbd7 {[%emt 0:02:41]} 11. Qd2 {[%emt 0:02:45]} Re8 {[%emt 0:01:00]} 12. Rac1 {[%emt 0:03:22]} Rc8 {[%emt 0:01:57]} 13. Rfd1 {[%emt 0:01:15]} h5 {[%emt 0:09:03]} 14. Qe1 {[%emt 0:09:44]} Qc7 {[%emt 0:03:46]} 15. Nd5 {[%emt 0:04:37]} Qb8 {[%emt 0:01:14]} 16. Qg3 {[%emt 0:02:27]} Kh7 {[%emt 0:02:26]} 17. b3 {[%emt 0:02:52]} Nc5 {[%emt 0:13:50]} 18. Qh4 {[%emt 0:05:09]} Kg8 {[%emt 0:05:40]} 19. Bg5 {[%emt 0:05:58]} Ncd7 {[%emt 0:04:05]} 20. Nb5 {[%emt 0:09:09]} Nxd5 {[%emt 0:06:47]} 21. exd5 {[%emt 0:06:39]} e5 {[%emt 0:08:48]} 22. dxe6 {[%emt 0:03:51]} Rxe6 {[%emt 0:01:31]} 23. Bf1 {[%emt 0:00:45]} a6 {[%emt 0:02:35]} 24. Nc3 {[%emt 0:02:16]} Rce8 {[%emt 0:00:46]} 25. Nd5 {[%emt 0:01:06]} Ne5 {[%emt 0:03:01]} 26. Qf2 {[%emt 0:03:51]} f6 {[%emt 0:05:47]} 27. Bd2 {[%emt 0:01:10]} Bxd5 {[%emt 0:04:48]} 28. cxd5 {[%emt 0:00:06]} R6e7 {[%emt 0:00:03]} 29. a4 {[%emt 0:05:16]} b5 {[%emt 0:00:57]} 30. a5 {[%emt 0:00:50]} f5 {[%emt 0:04:55]} 31. Bg5 {[%emt 0:04:04]} Rf7 {[%emt 0:01:25]} 32. Rc2 {[%emt 0:03:31]} Bf6 {[%emt 0:02:39]} 33. Bxf6 {[%emt 0:04:00]} Rxf6 {[%emt 0:00:33]} 34. Rdc1 {[%emt 0:00:13]} Rf7 {[%emt 0:03:17]} 35. Qd4 {[%emt 0:04:52]} f4 {[%emt 0:03:21]} 36. Bd3 {[%emt 0:02:14]} h4 {[%emt 0:01:51]} 37. Be4 {[%emt 0:00:43]} Qa7 {[%emt 0:00:33]} 38. Qxa7 {[%emt 0:00:51]} Rxa7 {[%emt 0:00:02]} 39. Rc7 {[%emt 0:00:27]} Rea8 {[%emt 0:00:41]} 40. Kf2 {[%emt 0:00:00]} Kf8 {[%emt 0:00:32]} 41. g3 {[%emt 0:10:05]} hxg3+ {[%emt 0:02:15]} 42. hxg3 {[%emt 0:00:05]} g5 {[%emt 0:00:27]} 43. gxf4 {[%emt 0:02:02]} gxf4 {[%emt 0:00:03]} 44. Ke2 {[%emt 0:05:58]} Ke8 {[%emt 0:00:47]} 45. Rxa7 {[%emt 0:02:56]} Rxa7 {[%emt 0:00:57]} 46. Rh1 {[%emt 0:00:19]} Rg7 {[%emt 0:01:35]} 47. Rh8+ {[%emt 0:03:49]} Kd7 {[%emt 0:01:47]} 48. Ra8 {[%emt 0:00:47]} Rg2+ {[%emt 0:00:08]} 49. Ke1 {[%emt 0:02:24]} Rb2 {[%emt 0:00:39]} 50. Ra7+ {[%emt 0:00:24]} Kc8 {[%emt 0:01:05]} 51. Rxa6 {[%emt 0:01:13]} Kc7 {[%emt 0:04:03]} 52. Ra7+ {[%emt 0:00:56]} Kb8 {[%emt 0:00:44]} 53. Ra6 {[%emt 0:01:40]} Kc7 {[%emt 0:00:18]} 54. Ra7+ {[%emt 0:00:31]} Kb8 {[%emt 0:01:56]} 1/2-1/2

[Event "36th Zalakaros Festival 2017"]
[Site "Zalakaros"]
[Date "2017.05.20"]
[Round "3"]
[White "Rudolf, Michal"]
[Black "Karacsonyi, Gellert"]
[Result "1-0"]
[ECO "E32"]
[WhiteElo "2340"]
[BlackElo "2189"]
[Annotator "NA"]
[PlyCount "89"]
[EventDate "2017.??.??"]
[EventType "swiss"]
[EventCountry "HUN"]
[SourceTitle "playchess.com"]
[Source "ChessBase"]
[SourceQuality "1"]
[TimeControl "40/5400+30:1800+30"]

1. d4 {[%emt 0:00:05]} Nf6 {[%emt 0:00:36]} 2. c4 {[%emt 0:00:15]} e6 {[%emt 0:00:06]} 3. Nc3 {[%emt 0:00:05]} Bb4 {[%emt 0:00:08]} 4. Qc2 {[%emt 0:00:06]} O-O {[%emt 0:00:33]} 5. a3 {[%emt 0:00:06]} Bxc3+ {[%emt 0:00:13]} 6. Qxc3 {[%emt 0:00:01]} d5 {[%emt 0:02:11]} 7. Bg5 {[%emt 0:01:09]} dxc4 {[%emt 0:01:06]} 8. Qxc4 {[%emt 0:00:17]} b6 {[%emt 0:01:43]} 9. Nf3 {[%emt 0:00:47]} Ba6 {[%emt 0:01:46]} 10. Qa4 {[%emt 0:00:14]} Qd7 {[%emt 0:12:52]} 11. Qc2 {[%emt 0:14:01]} Rc8 {[%emt 0:04:20]} 12. Bxf6 {[%emt 0:08:08]} gxf6 {[%emt 0:00:20]} 13. Rd1 {[%emt 0:04:46]} Qc6 {[%emt 0:13:10]} 14. Qxc6 {[%emt 0:09:22]} Nxc6 {[%emt 0:00:02]} 15. g3 {[%emt 0:00:23]} Ne7 {[%emt 0:04:19]} 16. e3 {[%emt 0:18:21]} Bxf1 {[%emt 0:02:23]} 17. Rxf1 {[%emt 0:00:07]} c5 {[%emt 0:00:37]} 18. Ke2 {[%emt 0:01:28]} cxd4 {[%emt 0:08:58]} 19. Nxd4 {[%emt 0:00:10]} e5 {[%emt 0:08:42]} 20. Nb5 {[%emt 0:00:32]} Rc2+ {[%emt 0:01:04]} 21. Rd2 {[%emt 0:00:05]} Rxd2+ {[%emt 0:00:35]} 22. Kxd2 {[%emt 0:00:01]} Rd8+ {[%emt 0:03:15]} 23. Ke2 {[%emt 0:01:47]} a6 {[%emt 0:01:52]} 24. Nc3 {[%emt 0:00:11]} Nd5 {[%emt 0:01:01]} 25. Rc1 {[%emt 0:00:26]} Nxc3+ {[%emt 0:02:47]} 26. Rxc3 {[%emt 0:00:02]} Rd6 {[%emt 0:00:13]} 27. g4 {[%emt 0:06:44]} b5 {[%emt 0:01:08]} 28. Rc7 {[%emt 0:01:23]} Kg7 {[%emt 0:04:19]} 29. Ra7 {[%emt 0:04:43]} b4 {[%emt 0:07:37]} 30. axb4 {[%emt 0:14:16]} Rb6 {[%emt 0:01:03]} 31. Kd3 {[%emt 0:02:49]} Rxb4 {[%emt 0:00:11]} 32. Kc3 {[%emt 0:00:03]} Rb6 {[%emt 0:06:16]} 33. b4 {[%emt 0:00:23]} Kg6 {[%emt 0:04:02]} 34. h3 {[%emt 0:00:21]} Rd6 {[%emt 0:03:17]} 35. Kc4 {[%emt 0:00:34]} h6 {[%emt 0:01:44]} 36. Kc5 {[%emt 0:00:41]} Re6 {[%emt 0:01:30]} 37. Rb7 {[%emt 0:01:01]} Re8 {[%emt 0:01:31]} 38. Rb6 {[%emt 0:01:27]} Ra8 {[%emt 0:00:07]} 39. Kc6 {[%emt 0:00:20]} Ra7 {[%emt 0:00:44]} 40. Rb7 {[%emt 0:00:00]} Ra8 {[%emt 0:00:06]} 41. Kb6 {[%emt 0:00:42]} e4 {[%emt 0:02:02]} 42. Ka5 {[%emt 0:02:48]} Rd8 {[%emt 0:01:08]} 43. Kxa6 {[%emt 0:00:23]} Rd6+ {[%emt 0:05:50]} 44. Ka5 {[%emt 0:00:19]} Rd2 {[%emt 0:09:24]} 45. Re7 {[%emt 0:00:33]} 1-0

[Event "36th Zalakaros Festival 2017"]
[Site "Zalakaros"]
[Date "2017.05.20"]
[Round "3"]
[White "Gara, Ticia"]
[Black "Szalanczy, Emil"]
[Result "1-0"]
[ECO "B75"]
[WhiteElo "2329"]
[BlackElo "2230"]
[Annotator "NA"]
[PlyCount "79"]
[EventDate "2017.??.??"]
[EventType "swiss"]
[EventCountry "HUN"]
[SourceTitle "playchess.com"]
[Source "ChessBase"]
[SourceQuality "1"]
[TimeControl "40/5400+30:1800+30"]

1. e4 {[%emt 0:03:30]} c5 {[%emt 0:00:36]} 2. Nf3 {[%emt 0:00:14]} d6 {[%emt 0:00:01]} 3. d4 {[%emt 0:00:27]} cxd4 {[%emt 0:00:03]} 4. Nxd4 {[%emt 0:00:09]} Nf6 {[%emt 0:00:03]} 5. Nc3 {[%emt 0:00:14]} g6 {[%emt 0:00:02]} 6. Be3 {[%emt 0:00:39]} Bg7 {[%emt 0:00:02]} 7. f3 {[%emt 0:00:17]} Nc6 {[%emt 0:00:02]} 8. Qd2 {[%emt 0:00:26]} O-O {[%emt 0:00:03]} 9. g4 {[%emt 0:00:12]} Nxd4 {[%emt 0:00:03]} 10. Bxd4 {[%emt 0:00:06]} Qa5 {[%emt 0:00:08]} 11. h4 {[%emt 0:02:05]} Be6 {[%emt 0:00:12]} 12. h5 {[%emt 0:00:46]} Rfc8 {[%emt 0:00:08]} 13. a3 {[%emt 0:01:40]} a6 {[%emt 0:03:13]} 14. h6 {[%emt 0:03:30]} Bh8 {[%emt 0:14:02]} 15. g5 {[%emt 0:01:47]} Nd7 {[%emt 0:10:56]} 16. f4 {[%emt 0:04:09]} Bxd4 {[%emt 0:26:12]} 17. Qxd4 {[%emt 0:01:19]} f6 {[%emt 0:00:03]} 18. O-O-O {[%emt 0:20:04]} Qc5 {[%emt 0:06:35]} 19. gxf6 {[%emt 0:11:59]} Nxf6 {[%emt 0:01:39]} 20. e5 {[%emt 0:01:07]} dxe5 {[%emt 0:07:43]} 21. Qxe5 {[%emt 0:11:37]} Qxe5 {[%emt 0:01:27]} 22. fxe5 {[%emt 0:00:03]} Nh5 {[%emt 0:02:41]} 23. Bg2 {[%emt 0:01:34]} Ra7 {[%emt 0:07:17]} 24. Rd4 {[%emt 0:07:12]} b5 {[%emt 0:04:49]} 25. Rhd1 {[%emt 0:01:25]} Rac7 {[%emt 0:01:35]} 26. Rd8+ {[%emt 0:01:26]} Kf7 {[%emt 0:00:08]} 27. Rxc8 {[%emt 0:11:20]} Bxc8 {[%emt 0:02:33]} 28. Bd5+ {[%emt 0:02:54]} e6 {[%emt 0:00:46]} 29. Bf3 {[%emt 0:01:27]} Ng3 {[%emt 0:02:36]} 30. Rd8 {[%emt 0:03:00]} g5 {[%emt 0:03:04]} 31. Ne4 {[%emt 0:00:56]} g4 {[%emt 0:01:35]} 32. Nd6+ {[%emt 0:01:02]} Kg6 {[%emt 0:00:07]} 33. Bxg4 {[%emt 0:00:41]} Bb7 {[%emt 0:01:55]} 34. Bxe6 {[%emt 0:01:25]} Kxh6 {[%emt 0:01:51]} 35. Rd7 {[%emt 0:00:44]} Rxd7 {[%emt 0:01:36]} 36. Bxd7 {[%emt 0:00:03]} Bf3 {[%emt 0:00:20]} 37. e6 {[%emt 0:01:15]} Bg4 {[%emt 0:00:10]} 38. Bc8 {[%emt 0:00:46]} Nf5 {[%emt 0:02:31]} 39. Nxf5+ {[%emt 0:00:30]} Bxf5 {[%emt 0:00:03]} 40. e7 {[%emt 0:00:00]} 1-0